[Event "Live Chess"]
[Site "Chess.com"]
[Date "2024.06.02"]
[Round "-"]
[White "wadsy27"]
[Black "friarnator"]
[Result "1-0"]
[WhiteElo "2570"]
[BlackElo "2189"]
[TimeControl "300"]
[EndTime "2:39:45 PDT"]
[Termination "wadsy27 won by resignation"]

1. d4 {[%clk 0:04:58.5]} 1... Nf6 {[%clk 0:04:57.7]} 2. Nf3 {[%clk 0:04:57.8]}
2... g6 {[%clk 0:04:56.9]} 3. Bf4 {[%clk 0:04:57.5]} 3... Bg7 {[%clk 0:04:55.2]}
4. e3 {[%clk 0:04:57.2]} 4... O-O {[%clk 0:04:54.4]} 5. h3 {[%clk 0:04:56.3]}
5... d6 {[%clk 0:04:53.6]} 6. Be2 {[%clk 0:04:55.8]} 6... Nbd7 {[%clk
0:04:51.1]} 7. O-O {[%clk 0:04:55]} 7... c5 {[%clk 0:04:50.3]} 8. c3 {[%clk
0:04:53.1]} 8... Ne4 {[%clk 0:04:43]} 9. Nfd2 {[%clk 0:04:48.5]} 9... Ndf6
{[%clk 0:04:34.1]} 10. Nxe4 {[%clk 0:04:46]} 10... Nxe4 {[%clk 0:04:34]} 11. Nd2
{[%clk 0:04:45.3]} 11... Nxd2 {[%clk 0:04:29.3]} 12. Qxd2 {[%clk 0:04:45.2]}
12... e5 {[%clk 0:04:28.2]} 13. dxe5 {[%clk 0:04:34]} 13... dxe5 {[%clk
0:04:28.1]} 14. Qxd8 {[%clk 0:04:32.3]} 14... Rxd8 {[%clk 0:04:28]} 15. Bg5
{[%clk 0:04:27.8]} 15... Rd2 {[%clk 0:04:21.5]} 16. Rfd1 {[%clk 0:04:25.9]}
16... Rxd1+ {[%clk 0:04:14.4]} 17. Rxd1 {[%clk 0:04:24.6]} 17... Be6 {[%clk
0:04:12.6]} 18. Be7 {[%clk 0:04:17.3]} 18... Bf8 {[%clk 0:03:56.8]} 19. Bxf8
{[%clk 0:04:12.5]} 19... Kxf8 {[%clk 0:03:56.7]} 20. Bf3 {[%clk 0:04:10.1]}
20... Rb8 {[%clk 0:03:51]} 21. a3 {[%clk 0:04:06.6]} 21... Ke7 {[%clk
0:03:45.8]} 22. g4 {[%clk 0:04:04.3]} 22... b6 {[%clk 0:03:41.1]} 23. Kg2 {[%clk
0:04:00.3]} 23... f5 {[%clk 0:03:37]} 24. Kg3 {[%clk 0:03:58.4]} 24... Bc4
{[%clk 0:02:59]} 25. Kh4 {[%clk 0:03:50]} 25... e4 {[%clk 0:02:51.2]} 26. Bg2
{[%clk 0:03:48.3]} 26... Kf6 {[%clk 0:02:37.8]} 27. Rd7 {[%clk 0:03:42.4]} 27...
g5+ {[%clk 0:02:13.6]} 28. Kg3 {[%clk 0:03:40.5]} 28... h6 {[%clk 0:01:54.5]}
29. gxf5 {[%clk 0:03:38.3]} 29... Kxf5 {[%clk 0:01:50.4]} 30. Rxa7 {[%clk
0:03:37.2]} 30... Rd8 {[%clk 0:01:47.4]} 31. Re7 {[%clk 0:03:35.8]} 31... Rd2
{[%clk 0:01:36.8]} 32. Bxe4+ {[%clk 0:03:32.4]} 32... Kf6 {[%clk 0:01:34]} 33.
Rh7 {[%clk 0:03:31.7]} 33... Rxb2 {[%clk 0:01:25.5]} 34. Rxh6+ {[%clk
0:03:21.5]} 34... Ke5 {[%clk 0:01:24.7]} 35. Bh7 {[%clk 0:03:12.8]} 35... Be2
{[%clk 0:01:05.6]} 36. Rg6 {[%clk 0:03:10.8]} 36... Bd3 {[%clk 0:00:56.1]} 37.
Rxg5+ {[%clk 0:03:07.7]} 37... Kf6 {[%clk 0:00:55.2]} 38. Rh5 {[%clk 0:03:06.6]}
38... Bxh7 {[%clk 0:00:52]} 39. Rxh7 {[%clk 0:03:05.6]} 39... Rb3 {[%clk
0:00:51.9]} 40. h4 {[%clk 0:03:04.4]} 40... Rxc3 {[%clk 0:00:44.5]} 41. Rh6+
{[%clk 0:03:03.6]} 41... Kf5 {[%clk 0:00:40.2]} 42. Rxb6 {[%clk 0:03:03.5]}
42... Rxa3 {[%clk 0:00:39.4]} 43. Rc6 {[%clk 0:03:02.7]} 43... Ra5 {[%clk
0:00:38.4]} 44. h5 {[%clk 0:03:01.9]} 44... Kg5 {[%clk 0:00:35.4]} 45. h6 {[%clk
0:03:01]} 45... Ra7 {[%clk 0:00:34.3]} 46. f4+ {[%clk 0:03:00.3]} 46... Kh5
{[%clk 0:00:31.1]} 47. Kf3 {[%clk 0:02:56.2]} 47... Re7 {[%clk 0:00:27.9]} 48.
e4 {[%clk 0:02:55.1]} 1-0

[Event "Live Chess"]
[Site "Chess.com"]
[Date "2024.06.02"]
[Round "-"]
[White "TheSmoulderingMaster"]
[Black "Pandreq"]
[Result "1-0"]
[WhiteElo "1784"]
[BlackElo "1209"]
[TimeControl "300"]
[EndTime "2:39:48 PDT"]
[Termination "TheSmoulderingMaster won by resignation"]

1. e4 {[%clk 0:04:56.2]} 1... Nf6 {[%clk 0:04:56]} 2. e5 {[%clk 0:04:53.1]} 2...
Nd5 {[%clk 0:04:54.7]} 3. d4 {[%clk 0:04:48.9]} 3... d6 {[%clk 0:04:53.9]} 4. c4
{[%clk 0:04:45]} 4... Nb6 {[%clk 0:04:52.6]} 5. f4 {[%clk 0:04:43.5]} 5... Nc6
{[%clk 0:04:51.2]} 6. Nf3 {[%clk 0:04:41.6]} 6... Bf5 {[%clk 0:04:50]} 7. Na3
{[%clk 0:04:36.2]} 7... dxe5 {[%clk 0:04:36.1]} 8. fxe5 {[%clk 0:04:33.8]} 8...
Be4 {[%clk 0:04:34.5]} 9. Bd3 {[%clk 0:04:30.5]} 9... Bxf3 {[%clk 0:04:27.4]}
10. Qxf3 {[%clk 0:04:24.9]} 10... e6 {[%clk 0:04:20.8]} 11. Be3 {[%clk
0:04:21.9]} 11... Bb4+ {[%clk 0:04:16.2]} 12. Kf2 {[%clk 0:04:17.9]} 12... Bxa3
{[%clk 0:04:05.4]} 13. bxa3 {[%clk 0:04:16.1]} 13... O-O {[%clk 0:04:04.4]} 14.
Rhd1 {[%clk 0:04:11.1]} 14... f6 {[%clk 0:03:56]} 15. Qh5 {[%clk 0:04:05.9]}
15... g6 {[%clk 0:03:45.5]} 16. Bxg6 {[%clk 0:04:04.2]} 16... Qe7 {[%clk
0:03:40.4]} 17. Bh6 {[%clk 0:03:57.7]} 17... hxg6 {[%clk 0:03:32.4]} 18. Qxg6+
{[%clk 0:03:55.3]} 18... Kh8 {[%clk 0:03:27]} 19. Rd3 {[%clk 0:03:53.1]} 19...
Rg8 {[%clk 0:03:17.1]} 20. Qh5 {[%clk 0:03:49]} 20... Rgd8 {[%clk 0:03:01.9]}
21. Rh3 {[%clk 0:03:44.1]} 21... Qh7 {[%clk 0:02:54.8]} 22. Bg7+ {[%clk
0:03:39.5]} 1-0

[Event "Live Chess"]
[Site "Chess.com"]
[Date "2024.06.02"]
[Round "-"]
[White "LL220284LL"]
[Black "grillage"]
[Result "1-0"]
[WhiteElo "2507"]
[BlackElo "1864"]
[TimeControl "300"]
[EndTime "2:40:03 PDT"]
[Termination "LL220284LL won by resignation"]

1. e4 {[%clk 0:04:57.5]} 1... d5 {[%clk 0:04:58.9]} 2. exd5 {[%clk 0:04:56.1]}
2... Qxd5 {[%clk 0:04:57.3]} 3. Nc3 {[%clk 0:04:54]} 3... Qd8 {[%clk 0:04:55.7]}
4. Nge2 {[%clk 0:04:53.5]} 4... Nf6 {[%clk 0:04:53.1]} 5. g3 {[%clk 0:04:52.4]}
5... Nc6 {[%clk 0:04:46.9]} 6. Bg2 {[%clk 0:04:50.9]} 6... e5 {[%clk 0:04:43.8]}
7. O-O {[%clk 0:04:49.1]} 7... Bc5 {[%clk 0:04:41.8]} 8. b3 {[%clk 0:04:41.4]}
8... O-O {[%clk 0:04:38.8]} 9. Bb2 {[%clk 0:04:40]} 9... Re8 {[%clk 0:04:36.5]}
10. d3 {[%clk 0:04:35.7]} 10... Nd4 {[%clk 0:04:31.9]} 11. Nxd4 {[%clk
0:04:29.2]} 11... Bxd4 {[%clk 0:04:20.5]} 12. Qc1 {[%clk 0:04:26.8]} 12... c6
{[%clk 0:04:13.9]} 13. Ne4 {[%clk 0:04:23.8]} 13... Nxe4 {[%clk 0:03:42.2]} 14.
Bxe4 {[%clk 0:04:13.7]} 14... Be6 {[%clk 0:03:28.5]} 15. Re1 {[%clk 0:04:10.9]}
15... Bxb2 {[%clk 0:03:17]} 16. Qxb2 {[%clk 0:04:09.3]} 16... f6 {[%clk
0:03:16.3]} 17. Rad1 {[%clk 0:04:07]} 17... Bd5 {[%clk 0:03:14.7]} 18. Qc3
{[%clk 0:03:53.8]} 18... Qd7 {[%clk 0:02:58.2]} 19. a4 {[%clk 0:03:46.4]} 19...
Rac8 {[%clk 0:02:44.3]} 20. Qa1 {[%clk 0:03:32.1]} 20... Qh3 {[%clk 0:02:37.1]}
21. Qc1 {[%clk 0:03:22.8]} 21... Rcd8 {[%clk 0:02:32.2]} 22. Qe3 {[%clk
0:03:18.8]} 22... Re7 {[%clk 0:02:23.7]} 23. Qxa7 {[%clk 0:03:15.6]} 23... Red7
{[%clk 0:02:21.7]} 24. Qe3 {[%clk 0:03:11.2]} 24... Qg4 {[%clk 0:02:17.9]} 25.
b4 {[%clk 0:03:06.2]} 25... Bxe4 {[%clk 0:02:12.3]} 26. Qxe4 {[%clk 0:03:04.1]}
26... Qxe4 {[%clk 0:02:10.6]} 27. Rxe4 {[%clk 0:03:03]} 27... Rd4 {[%clk
0:02:09.9]} 28. Rxd4 {[%clk 0:03:00.8]} 28... Rxd4 {[%clk 0:02:08.9]} 29. Rb1
{[%clk 0:03:00.4]} 29... Kf7 {[%clk 0:02:06.7]} 30. Kf1 {[%clk 0:02:59.2]} 30...
Ke6 {[%clk 0:02:06]} 31. Ke2 {[%clk 0:02:58.5]} 31... Kd5 {[%clk 0:02:04.9]} 32.
Ke3 {[%clk 0:02:56.8]} 32... Ke6 {[%clk 0:01:58.7]} 33. c4 {[%clk 0:02:53.5]}
33... Kd7 {[%clk 0:01:54.1]} 34. b5 {[%clk 0:02:51.2]} 34... Kc7 {[%clk
0:01:52]} 35. a5 {[%clk 0:02:47.9]} 35... Kb8 {[%clk 0:01:44.2]} 36. bxc6 {[%clk
0:02:45.4]} 1-0

[Event "Live Chess"]
[Site "Chess.com"]
[Date "2024.06.02"]
[Round "-"]
[White "GoldsmanB"]
[Black "vincents82"]
[Result "0-1"]
[WhiteElo "1102"]
[BlackElo "1985"]
[TimeControl "300"]
[EndTime "2:40:24 PDT"]
[Termination "vincents82 won by resignation"]

1. d4 {[%clk 0:04:58.1]} 1... d5 {[%clk 0:04:45.8]} 2. Bf4 {[%clk 0:04:56]} 2...
Nf6 {[%clk 0:04:44.3]} 3. e3 {[%clk 0:04:54.2]} 3... c5 {[%clk 0:04:41.6]} 4.
Nf3 {[%clk 0:04:53.3]} 4... Nc6 {[%clk 0:04:29.1]} 5. c3 {[%clk 0:04:52.2]} 5...
Qb6 {[%clk 0:04:26.3]} 6. Qb3 {[%clk 0:04:49.8]} 6... c4 {[%clk 0:04:25]} 7. Qc2
{[%clk 0:04:47.7]} 7... Bf5 {[%clk 0:04:22.6]} 8. Qd2 {[%clk 0:04:45.4]} 8...
Ne4 {[%clk 0:04:19.3]} 9. Qe2 {[%clk 0:04:42.2]} 9... e6 {[%clk 0:04:14.1]} 10.
Nbd2 {[%clk 0:04:39.2]} 10... Qxb2 {[%clk 0:04:11.8]} 11. Nxe4 {[%clk
0:04:33.8]} 11... Qxa1+ {[%clk 0:04:09.5]} 12. Qd1 {[%clk 0:04:31.5]} 12...
Qxd1+ {[%clk 0:04:07.2]} 13. Kxd1 {[%clk 0:04:31.4]} 13... Bxe4 {[%clk
0:04:06.4]} 0-1

[Event "Live Chess"]
[Site "Chess.com"]
[Date "2024.06.02"]
[Round "-"]
[White "CarmelJane"]
[Black "ACM42"]
[Result "1-0"]
[WhiteElo "2058"]
[BlackElo "2150"]
[TimeControl "300"]
[EndTime "2:40:25 PDT"]
[Termination "CarmelJane won on time"]

1. d4 {[%clk 0:04:55.9]} 1... Nf6 {[%clk 0:04:58.8]} 2. Nc3 {[%clk 0:04:53.6]}
2... g6 {[%clk 0:04:57.3]} 3. e4 {[%clk 0:04:51.5]} 3... Bg7 {[%clk 0:04:56.1]}
4. Bf4 {[%clk 0:04:51.1]} 4... d6 {[%clk 0:04:54.7]} 5. Qd2 {[%clk 0:04:50.2]}
5... Nbd7 {[%clk 0:04:50.9]} 6. O-O-O {[%clk 0:04:48.4]} 6... e5 {[%clk
0:04:49.6]} 7. dxe5 {[%clk 0:04:43]} 7... dxe5 {[%clk 0:04:47.2]} 8. Bh6 {[%clk
0:04:39.2]} 8... O-O {[%clk 0:04:42.9]} 9. h4 {[%clk 0:04:33.4]} 9... c6 {[%clk
0:04:39.9]} 10. h5 {[%clk 0:04:27.1]} 10... Nxh5 {[%clk 0:04:36.2]} 11. g4
{[%clk 0:04:22.1]} 11... Nf4 {[%clk 0:04:31.2]} 12. Bxg7 {[%clk 0:04:08.8]}
12... Kxg7 {[%clk 0:04:29.7]} 13. Nh3 {[%clk 0:04:03.3]} 13... Qc7 {[%clk
0:04:14.9]} 14. Nxf4 {[%clk 0:04:00.8]} 14... exf4 {[%clk 0:04:13.6]} 15. f3
{[%clk 0:03:57.6]} 15... Nf6 {[%clk 0:04:02.8]} 16. Qh2 {[%clk 0:03:49.3]} 16...
h5 {[%clk 0:03:52]} 17. gxh5 {[%clk 0:03:36.3]} 17... Nxh5 {[%clk 0:03:48.3]}
18. Qd2 {[%clk 0:03:26.3]} 18... Be6 {[%clk 0:03:42.2]} 19. Qd4+ {[%clk
0:03:18.1]} 19... f6 {[%clk 0:03:36.3]} 20. Bh3 {[%clk 0:02:47.9]} 20... Rfd8
{[%clk 0:03:17.7]} 21. Qg1 {[%clk 0:02:37.5]} 21... Rxd1+ {[%clk 0:03:02.6]} 22.
Qxd1 {[%clk 0:02:29.8]} 22... Rd8 {[%clk 0:02:49]} 23. Qg1 {[%clk 0:02:18.8]}
23... Bxh3 {[%clk 0:02:38.5]} 24. Rxh3 {[%clk 0:02:15.4]} 24... Qe5 {[%clk
0:02:31.5]} 25. Qxa7 {[%clk 0:01:58.1]} 25... Qd4 {[%clk 0:02:28.8]} 26. Qxd4
{[%clk 0:01:32.5]} 26... Rxd4 {[%clk 0:02:28.7]} 27. Ne2 {[%clk 0:01:31.5]}
27... Rd7 {[%clk 0:02:24.4]} 28. Rh1 {[%clk 0:01:30.4]} 28... Kh6 {[%clk
0:02:21.3]} 29. Rd1 {[%clk 0:01:29.1]} 29... Rxd1+ {[%clk 0:02:13]} 30. Kxd1
{[%clk 0:01:29]} 30... Kg5 {[%clk 0:02:02.9]} 31. b4 {[%clk 0:01:27.7]} 31...
Ng7 {[%clk 0:01:55.3]} 32. Nd4 {[%clk 0:01:21]} 32... Kh4 {[%clk 0:01:49.9]} 33.
Ke2 {[%clk 0:01:18.7]} 33... Ne8 {[%clk 0:01:40.1]} 34. a4 {[%clk 0:01:12.7]}
34... Nd6 {[%clk 0:01:39]} 35. a5 {[%clk 0:01:04.8]} 35... g5 {[%clk 0:01:36.8]}
36. a6 {[%clk 0:01:02.3]} 36... bxa6 {[%clk 0:01:32.8]} 37. Nxc6 {[%clk
0:01:01.9]} 37... g4 {[%clk 0:01:32.1]} 38. Nd4 {[%clk 0:00:46.5]} 38... Kg3
{[%clk 0:01:25.6]} 39. fxg4 {[%clk 0:00:41.6]} 39... Nxe4 {[%clk 0:01:24.4]} 40.
c4 {[%clk 0:00:28.5]} 40... Kxg4 {[%clk 0:01:07.9]} 41. c5 {[%clk 0:00:27.9]}
41... Nc3+ {[%clk 0:01:07]} 42. Kf1 {[%clk 0:00:25.1]} 42... Nd5 {[%clk
0:01:04.2]} 43. c6 {[%clk 0:00:24.3]} 43... f3 {[%clk 0:00:56.9]} 44. Ne6 {[%clk
0:00:22.2]} 44... Kg3 {[%clk 0:00:52.8]} 45. c7 {[%clk 0:00:14.9]} 45... Ne3+
{[%clk 0:00:49.2]} 46. Ke1 {[%clk 0:00:12.7]} 46... f2+ {[%clk 0:00:48.6]} 47.
Kd2 {[%clk 0:00:12.3]} 47... f1=Q {[%clk 0:00:43.4]} 48. c8=Q {[%clk 0:00:12.2]}
48... Qf2+ {[%clk 0:00:39.6]} 49. Kd3 {[%clk 0:00:11.6]} 49... Ng4 {[%clk
0:00:28]} 50. Qg8 {[%clk 0:00:10.2]} 50... Qf5+ {[%clk 0:00:23.1]} 51. Kc4
{[%clk 0:00:09.1]} 51... Qb5+ {[%clk 0:00:21.1]} 52. Kb3 {[%clk 0:00:07.6]}
52... f5 {[%clk 0:00:16.6]} 53. Nd4 {[%clk 0:00:06]} 53... Qd3+ {[%clk
0:00:13.7]} 54. Ka4 {[%clk 0:00:05.4]} 54... Qxd4 {[%clk 0:00:13]} 55. Qb3+
{[%clk 0:00:05]} 55... Qe3 {[%clk 0:00:10.1]} 56. Qc2 {[%clk 0:00:04.2]} 56...
f4 {[%clk 0:00:07.8]} 57. Qf5 {[%clk 0:00:03.6]} 57... f3 {[%clk 0:00:05.6]} 58.
Qc8 {[%clk 0:00:03.5]} 58... f2 {[%clk 0:00:04.1]} 59. Qb8+ {[%clk 0:00:03.4]}
59... Kg2 {[%clk 0:00:02.6]} 60. Qb7+ {[%clk 0:00:03.3]} 60... Qf3 {[%clk
0:00:01.9]} 61. Qg7 {[%clk 0:00:03.2]} 61... f1=Q {[%clk 0:00:00.2]} 62. Ka5
{[%clk 0:00:03.1]} 1-0

[Event "Live Chess"]
[Site "Chess.com"]
[Date "2024.06.02"]
[Round "-"]
[White "StoreySniper"]
[Black "McFim"]
[Result "1-0"]
[WhiteElo "2521"]
[BlackElo "1697"]
[TimeControl "300"]
[EndTime "2:40:31 PDT"]
[Termination "StoreySniper won by resignation"]

1. e4 {[%clk 0:04:57]} 1... c6 {[%clk 0:04:58]} 2. b3 {[%clk 0:04:48.7]} 2... d5
{[%clk 0:04:57.9]} 3. Bb2 {[%clk 0:04:47.8]} 3... dxe4 {[%clk 0:04:56.5]} 4. Nc3
{[%clk 0:04:46.9]} 4... Nf6 {[%clk 0:04:54.6]} 5. Qe2 {[%clk 0:04:46]} 5... Bf5
{[%clk 0:04:53.2]} 6. h3 {[%clk 0:04:39.9]} 6... h5 {[%clk 0:04:46.7]} 7. g3
{[%clk 0:04:35.3]} 7... Nbd7 {[%clk 0:04:43.6]} 8. Bg2 {[%clk 0:04:33.1]} 8...
e6 {[%clk 0:04:29]} 9. Nxe4 {[%clk 0:04:26.7]} 9... Nxe4 {[%clk 0:04:26.1]} 10.
Bxe4 {[%clk 0:04:25.9]} 10... Bxe4 {[%clk 0:04:24.8]} 11. Qxe4 {[%clk 0:04:25]}
11... Nf6 {[%clk 0:04:23.7]} 12. Qf3 {[%clk 0:04:18.9]} 12... Qd5 {[%clk
0:04:20.3]} 13. Bxf6 {[%clk 0:04:14.5]} 13... gxf6 {[%clk 0:04:14.2]} 14. Qxd5
{[%clk 0:04:11.4]} 14... cxd5 {[%clk 0:04:12.6]} 15. Nf3 {[%clk 0:04:06.9]}
15... Bg7 {[%clk 0:04:00.4]} 16. O-O-O {[%clk 0:04:02.9]} 16... O-O-O {[%clk
0:03:51.9]} 17. c3 {[%clk 0:03:59.7]} 17... Kb8 {[%clk 0:03:49.6]} 18. Kc2
{[%clk 0:03:57.8]} 18... Rc8 {[%clk 0:03:47.5]} 19. d3 {[%clk 0:03:48.3]} 19...
Rc7 {[%clk 0:03:44.5]} 20. c4 {[%clk 0:03:47.2]} 20... b5 {[%clk 0:03:39.3]} 21.
Nd2 {[%clk 0:03:23.4]} 21... bxc4 {[%clk 0:03:16.4]} 22. bxc4 {[%clk 0:03:20.6]}
22... dxc4 {[%clk 0:03:15.5]} 23. Nxc4 {[%clk 0:03:18.3]} 23... Rd8 {[%clk
0:03:02.6]} 24. Rb1+ {[%clk 0:03:12.6]} 24... Kc8 {[%clk 0:02:58]} 25. Rb3
{[%clk 0:03:10.2]} 25... Rd5 {[%clk 0:02:48.2]} 26. Rhb1 {[%clk 0:03:07.9]}
26... Kd7 {[%clk 0:02:45.2]} 27. Rb5 {[%clk 0:03:00.5]} 27... Rxb5 {[%clk
0:02:39.8]} 28. Rxb5 {[%clk 0:02:58.9]} 28... f5 {[%clk 0:02:39]} 29. Rb8 {[%clk
0:02:44.5]} 29... Bd4 {[%clk 0:02:23.8]} 30. f3 {[%clk 0:02:41.3]} 30... Bf2
{[%clk 0:02:19.2]} 31. Rg8 {[%clk 0:02:36.1]} 31... h4 {[%clk 0:02:06.7]} 32. g4
{[%clk 0:02:34.1]} 32... fxg4 {[%clk 0:02:05.1]} 33. Rxg4 {[%clk 0:02:29.9]}
33... Ke7 {[%clk 0:01:55.7]} 34. a4 {[%clk 0:02:21.7]} 34... a5 {[%clk
0:01:23.2]} 35. Rg5 {[%clk 0:02:14.6]} 35... Rc5 {[%clk 0:01:15.6]} 36. Rxc5
{[%clk 0:02:11.2]} 36... Bxc5 {[%clk 0:01:15.5]} 37. Nxa5 {[%clk 0:02:10.3]}
37... Bd4 {[%clk 0:01:05.6]} 38. Nc6+ {[%clk 0:02:08.4]} 1-0

[Event "Live Chess"]
[Site "Chess.com"]
[Date "2024.06.02"]
[Round "-"]
[White "A3ndrey9"]
[Black "Brooms1989"]
[Result "0-1"]
[WhiteElo "1279"]
[BlackElo "1187"]
[TimeControl "300"]
[EndTime "2:40:45 PDT"]
[Termination "Brooms1989 won by resignation"]

1. Nf3 {[%clk 0:04:58.3]} 1... Nf6 {[%clk 0:04:58.2]} 2. d4 {[%clk 0:04:57.7]}
2... g6 {[%clk 0:04:56.3]} 3. c4 {[%clk 0:04:57.1]} 3... Bg7 {[%clk 0:04:55.4]}
4. Nc3 {[%clk 0:04:56.6]} 4... O-O {[%clk 0:04:54.6]} 5. Bf4 {[%clk 0:04:55]}
5... d6 {[%clk 0:04:50.2]} 6. g3 {[%clk 0:04:54.4]} 6... Nh5 {[%clk 0:04:46.5]}
7. Bd2 {[%clk 0:04:51.4]} 7... e5 {[%clk 0:04:43.1]} 8. dxe5 {[%clk 0:04:46.5]}
8... dxe5 {[%clk 0:04:41.8]} 9. Bg2 {[%clk 0:04:46]} 9... Nc6 {[%clk 0:04:37.9]}
10. O-O {[%clk 0:04:43.4]} 10... f5 {[%clk 0:04:35]} 11. Bg5 {[%clk 0:04:39.4]}
11... Bf6 {[%clk 0:04:28.2]} 12. Qxd8 {[%clk 0:04:34.2]} 12... Rxd8 {[%clk
0:04:25.5]} 13. Bxf6 {[%clk 0:04:33.4]} 13... Nxf6 {[%clk 0:04:24.6]} 14. Rad1
{[%clk 0:04:24.6]} 14... Be6 {[%clk 0:04:20.7]} 15. b3 {[%clk 0:04:19.2]} 15...
a6 {[%clk 0:03:46.6]} 16. Ng5 {[%clk 0:04:17.8]} 16... Bf7 {[%clk 0:03:41.4]}
17. Rxd8+ {[%clk 0:04:10.7]} 17... Rxd8 {[%clk 0:03:39.3]} 18. Bxc6 {[%clk
0:04:06.8]} 18... bxc6 {[%clk 0:03:36.9]} 19. Nxf7 {[%clk 0:04:02.7]} 19... Kxf7
{[%clk 0:03:35.2]} 20. Rd1 {[%clk 0:04:02.3]} 20... Rxd1+ {[%clk 0:03:32.3]} 21.
Nxd1 {[%clk 0:04:01.5]} 21... Ke6 {[%clk 0:03:31.8]} 22. Nc3 {[%clk 0:04:00.7]}
22... e4 {[%clk 0:03:28.1]} 23. h3 {[%clk 0:03:57.3]} 23... Ke5 {[%clk
0:03:26.5]} 24. e3 {[%clk 0:03:53.5]} 24... Nd7 {[%clk 0:03:22.4]} 25. b4 {[%clk
0:03:50.9]} 25... c5 {[%clk 0:03:18.9]} 26. a3 {[%clk 0:03:49.9]} 26... cxb4
{[%clk 0:03:17.6]} 27. axb4 {[%clk 0:03:48.8]} 27... Nb6 {[%clk 0:03:15.5]} 28.
b5 {[%clk 0:03:35]} 28... axb5 {[%clk 0:03:11.3]} 29. cxb5 {[%clk 0:03:30.7]}
29... Kd6 {[%clk 0:03:07.9]} 30. g4 {[%clk 0:03:22.7]} 30... Kc5 {[%clk
0:03:05.4]} 31. gxf5 {[%clk 0:03:14]} 31... gxf5 {[%clk 0:03:05.3]} 32. Kg2
{[%clk 0:03:04.6]} 32... Nc4 {[%clk 0:03:03.7]} 33. Kg3 {[%clk 0:03:00.3]} 33...
Na3 {[%clk 0:03:02.2]} 34. Kf4 {[%clk 0:02:56.7]} 34... Nxb5 {[%clk 0:03:00.7]}
35. Nxb5 {[%clk 0:02:55.9]} 35... Kxb5 {[%clk 0:02:59.8]} 36. Kxf5 {[%clk
0:02:55.6]} 36... c5 {[%clk 0:02:57.3]} 37. Kxe4 {[%clk 0:02:54.9]} 37... Kb4
{[%clk 0:02:56.6]} 38. Kd3 {[%clk 0:02:54]} 38... Kb3 {[%clk 0:02:55.9]} 39. e4
{[%clk 0:02:53]} 39... c4+ {[%clk 0:02:53.6]} 40. Kd2 {[%clk 0:02:51.9]} 40...
Kb2 {[%clk 0:02:52.7]} 41. e5 {[%clk 0:02:07.7]} 41... c3+ {[%clk 0:02:52.6]}
42. Kd3 {[%clk 0:02:07.2]} 42... c2 {[%clk 0:02:52.5]} 43. e6 {[%clk 0:02:06.7]}
43... c1=Q {[%clk 0:02:52.4]} 44. e7 {[%clk 0:02:05.7]} 44... Qe1 {[%clk
0:02:49.9]} 0-1

[Event "Live Chess"]
[Site "Chess.com"]
[Date "2024.06.02"]
[Round "-"]
[White "uselessduffer"]
[Black "crais6"]
[Result "1-0"]
[WhiteElo "2389"]
[BlackElo "1605"]
[TimeControl "300"]
[EndTime "2:40:51 PDT"]
[Termination "uselessduffer won by resignation"]

1. e4 {[%clk 0:04:56.7]} 1... e5 {[%clk 0:04:57.8]} 2. Nf3 {[%clk 0:04:55.2]}
2... Nc6 {[%clk 0:04:55.8]} 3. Bb5 {[%clk 0:04:54.1]} 3... a6 {[%clk 0:04:53.7]}
4. Ba4 {[%clk 0:04:52.8]} 4... Nf6 {[%clk 0:04:51.7]} 5. O-O {[%clk 0:04:51.7]}
5... Be7 {[%clk 0:04:47]} 6. Re1 {[%clk 0:04:49.4]} 6... b5 {[%clk 0:04:45.5]}
7. Bb3 {[%clk 0:04:48.6]} 7... O-O {[%clk 0:04:43.7]} 8. d3 {[%clk 0:04:47.4]}
8... d5 {[%clk 0:04:37.7]} 9. exd5 {[%clk 0:04:47.3]} 9... Nxd5 {[%clk
0:04:35.8]} 10. Nxe5 {[%clk 0:04:47]} 10... Nxe5 {[%clk 0:04:33.8]} 11. Rxe5
{[%clk 0:04:46.9]} 11... c6 {[%clk 0:04:32.2]} 12. Nd2 {[%clk 0:04:33.3]} 12...
Bd6 {[%clk 0:04:29.9]} 13. Re1 {[%clk 0:04:31.9]} 13... Qh4 {[%clk 0:04:26.7]}
14. Nf3 {[%clk 0:04:30.3]} 14... Qh5 {[%clk 0:04:19]} 15. Re4 {[%clk 0:04:13.2]}
15... Bg4 {[%clk 0:04:14.5]} 16. h3 {[%clk 0:04:06.3]} 16... Bxf3 {[%clk
0:04:09.8]} 17. Qxf3 {[%clk 0:04:06.2]} 17... Qxf3 {[%clk 0:04:07.8]} 18. gxf3
{[%clk 0:04:06.1]} 18... Rae8 {[%clk 0:04:06.3]} 19. Bd2 {[%clk 0:03:59.8]}
19... f5 {[%clk 0:03:56.5]} 20. Rxe8 {[%clk 0:03:44.7]} 20... Rxe8 {[%clk
0:03:54.7]} 21. c4 {[%clk 0:03:43.3]} 21... bxc4 {[%clk 0:03:50]} 22. dxc4
{[%clk 0:03:43.2]} 22... Re2 {[%clk 0:03:35.6]} 23. Be1 {[%clk 0:03:28.3]} 23...
Nf4 {[%clk 0:03:26]} 24. c5+ {[%clk 0:03:25.1]} 24... Kf8 {[%clk 0:03:23.5]} 25.
cxd6 {[%clk 0:03:23.8]} 25... Nxh3+ {[%clk 0:03:21.4]} 26. Kf1 {[%clk
0:03:22.6]} 26... Rxb2 {[%clk 0:03:17.3]} 27. d7 {[%clk 0:03:07.9]} 27... Ke7
{[%clk 0:03:15.1]} 28. Rd1 {[%clk 0:03:07.5]} 28... Kd8 {[%clk 0:03:11.2]} 29.
Ba5+ {[%clk 0:03:06]} 1-0

[Event "Live Chess"]
[Site "Chess.com"]
[Date "2024.06.02"]
[Round "-"]
[White "ZatixMajor"]
[Black "AlanBstard10"]
[Result "1-0"]
[WhiteElo "2027"]
[BlackElo "1233"]
[TimeControl "300"]
[EndTime "2:40:59 PDT"]
[Termination "ZatixMajor won by resignation"]

1. c4 {[%clk 0:04:52.7]} 1... e5 {[%clk 0:04:57.9]} 2. g3 {[%clk 0:04:52.2]}
2... d6 {[%clk 0:04:52.7]} 3. Bg2 {[%clk 0:04:51.5]} 3... Nf6 {[%clk 0:04:50.5]}
4. Nc3 {[%clk 0:04:51]} 4... g6 {[%clk 0:04:48.6]} 5. Nf3 {[%clk 0:04:48.9]}
5... Bg7 {[%clk 0:04:47.1]} 6. d4 {[%clk 0:04:47.4]} 6... exd4 {[%clk
0:04:45.6]} 7. Nxd4 {[%clk 0:04:46.5]} 7... O-O {[%clk 0:04:44.5]} 8. O-O {[%clk
0:04:45.9]} 8... c5 {[%clk 0:04:37.6]} 9. Ndb5 {[%clk 0:04:44.9]} 9... Qd7
{[%clk 0:04:28.4]} 10. Nxd6 {[%clk 0:04:35.6]} 10... Rd8 {[%clk 0:04:19.3]} 11.
Nxc8 {[%clk 0:04:34.6]} 11... Qxd1 {[%clk 0:04:16.1]} 12. Rxd1 {[%clk
0:04:33.7]} 12... Rxc8 {[%clk 0:04:15.6]} 13. Bxb7 {[%clk 0:04:29.9]} 13... Nbd7
{[%clk 0:04:12]} 14. Bxa8 {[%clk 0:04:26.7]} 14... Rxa8 {[%clk 0:04:11]} 15. Bg5
{[%clk 0:04:25.6]} 15... Ne5 {[%clk 0:04:08.5]} 16. Bxf6 {[%clk 0:04:20.9]}
16... Bxf6 {[%clk 0:04:06.8]} 17. Ne4 {[%clk 0:04:20.1]} 17... Kg7 {[%clk
0:04:03.9]} 18. Rac1 {[%clk 0:04:13.6]} 18... Re8 {[%clk 0:04:01.5]} 19. Nxc5
{[%clk 0:04:09]} 19... Nc6 {[%clk 0:03:59.2]} 20. Rd2 {[%clk 0:03:57.4]} 20...
Nb4 {[%clk 0:03:52.8]} 21. a3 {[%clk 0:03:44.1]} 21... Nc6 {[%clk 0:03:46.6]}
22. Nd7 {[%clk 0:03:40.6]} 22... Bg5 {[%clk 0:03:43.4]} 23. f4 {[%clk
0:03:39.6]} 23... Bf6 {[%clk 0:03:41.4]} 24. Nxf6 {[%clk 0:03:38.7]} 24... Kxf6
{[%clk 0:03:40.6]} 25. Rd5 {[%clk 0:03:38.1]} 25... Rxe2 {[%clk 0:03:38.5]} 26.
Rd6+ {[%clk 0:03:37.3]} 26... Kf5 {[%clk 0:03:36.9]} 27. Rxc6 {[%clk 0:03:36.5]}
27... Rxb2 {[%clk 0:03:36.1]} 28. Rc7 {[%clk 0:03:34.9]} 28... Rb3 {[%clk
0:03:35.1]} 29. Rxa7 {[%clk 0:03:33]} 1-0